bitfinex/quotes_ETHUSD_20250903
["timestamp","ask_amount","ask_price","bid_price","bid_amount"]
[1756862480897,11.67330007,4303.2,4303.1,0.004]
[1756862481211,13.31130007,4303.2,4303.1,0.004]
[1756862481780,2.32406804,4302.8,4302.7,0.004]
[1756862482010,2.32406804,4302.8,4302.4,0.004]
[1756862482011,3.11623009,4302.5,4302.4,0.004]
[1756862482210,7.35226714,4302.5,4302.4,0.004]
[1756862482409,8.36053009,4302.5,4302.4,0.004]
[1756862482610,11.36053009,4302.5,4302.4,0.004]
[1756862482983,11.36053009,4302.5,4302.3,1e-08]
[1756862482984,6.11628412,4302.4,4302.3,1e-08]
[1756862483314,8.06843218,4302.4,4302.3,1e-08]
[1756862483513,9.28573218,4302.4,4302.3,1e-08]
[1756862483689,8.97158412,4302.4,4302.3,1e-08]
[1756862487329,9.28573218,4302.4,4302.3,1e-08]
[1756862487928,8.97158412,4302.4,4302.3,1e-08]
[1756862492339,8.50448412,4302.4,4302.3,1e-08]
[1756862493837,8.50448412,4302.4,4302.3,0.29520001]
[1756862493838,10.87328412,4302.4,4302.3,0.29520001]
[1756862494048,11.17348412,4302.4,4302.3,1e-08]
[1756862494343,11.61598412,4302.4,4302.3,1e-08]
[1756862494839,6.96228412,4302.4,4302.3,1e-08]
[1756862495011,10.87328412,4302.4,4302.3,1e-08]
[1756862496044,10.87328412,4302.4,4302.3,0.29520001]
[1756862496226,6.96228412,4302.4,4302.3,0.29520001]
[1756862496456,10.87328412,4302.4,4302.3,1e-08]
[1756862496742,11.17348412,4302.4,4302.3,1e-08]
[1756862497051,10.87328412,4302.4,4302.3,1e-08]
[1756862497949,11.17348412,4302.4,4302.3,1e-08]
[1756862498741,12.89808412,4302.4,4302.3,1e-08]
[1756862498942,13.48008064,4302.4,4302.3,1e-08]
[1756862499447,19.54352719,4302.4,4302.3,1e-08]
[1756862500043,19.27567873,4302.4,4302.3,1e-08]
[1756862500451,18.96153067,4302.4,4302.3,1e-08]
[1756862501461,12.89808412,4302.4,4302.3,1e-08]
[1756862504972,12.89808412,4302.4,4301.9,0.004]
[1756862504973,3.792,4302.0,4301.5,0.004]
[1756862505278,6.11677042,4301.5,4301.4,1e-08]
[1756862505478,12.28111848,4301.5,4301.4,1e-08]
[1756862505647,13.32971848,4301.5,4301.4,1e-08]
[1756862506261,12.52547042,4301.5,4301.4,1e-08]
[1756862507145,8.17197042,4301.5,4301.4,1e-08]
[1756862507360,11.78277042,4301.5,4301.4,1e-08]
[1756862507585,12.52547042,4301.5,4301.4,1e-08]
[1756862507947,7.07977042,4301.5,4301.4,0.77210001]
[1756862508266,10.99077042,4301.5,4301.4,0.77210001]
[1756862508660,10.99077042,4301.5,4301.4,0.29520001]
[1756862509291,10.99077042,4301.5,4301.4,1e-08]
[1756862509469,7.07977042,4301.5,4301.4,1e-08]
[1756862509674,10.99177042,4301.5,4301.4,0.29520001]
[1756862510195,7.07977042,4301.5,4301.4,0.29520001]
[1756862510380,10.99177042,4301.5,4301.4,0.29520001]
[1756862510762,7.07977042,4301.5,4301.4,0.29520001]
[1756862510956,10.99077042,4301.5,4301.4,0.77210001]
[1756862514508,7.07977042,4301.5,4301.4,0.77210001]
[1756862514708,10.99077042,4301.5,4301.4,0.77210001]
[1756862515109,7.07977042,4301.5,4301.4,0.77210001]
[1756862515332,10.99077042,4301.5,4301.4,0.77210001]
[1756862516039,2.44077042,4301.5,4301.4,0.77210001]
[1756862516210,2.44077042,4301.5,4301.4,0.97520001]
[1756862516407,0.116,4301.5,4301.4,0.97520001]
[1756862516918,1.64,4302.4,4301.4,0.97520001]
[1756862516919,2.44045863,4302.1,4301.4,0.97520001]
[1756862517243,2.32450354,4302.0,4301.5,1.02161259]
[1756862517396,2.32450354,4302.0,4301.5,0.2031]
[1756862517741,2.4404513,4302.1,4301.9,0.2952]
[1756862518135,2.4404513,4302.1,4302.0,0.4769]
[1756862518333,2.4404513,4302.1,4302.0,0.7721]
[1756862520297,0.116,4302.1,4302.0,0.7721]
[1756862520713,0.116,4302.1,4302.0,0.9752]
[1756862520922,0.001,4302.4,4302.0,0.9752]
[1756862521130,0.001,4302.4,4302.1,0.6711]
[1756862521331,0.001,4302.4,4302.1,0.79093]
[1756862521546,0.001,4302.4,4302.3,0.3107]
[1756862521907,0.001,4302.4,4302.3,0.9818]
[1756862522719,0.001,4302.4,4302.3,1.0978]
[1756862523131,0.001,4302.4,4302.3,1.12104338]
[1756862523334,0.001,4302.4,4302.3,1.27446924]
[1756862523649,0.001,4302.4,4302.3,1.0978]
[1756862524229,0.001,4302.4,4302.3,0.8947]
[1756862526563,0.001,4302.4,4302.3,1.0978]
[1756862527134,0.001,4302.4,4302.3,0.8947]
[1756862527934,0.001,4302.4,4302.3,1.0978]
[1756862528270,0.001,4302.4,4302.3,1.622363]
[1756862528566,2.32528412,4302.4,4302.3,0.8947]
[1756862528765,2.32528412,4302.4,4301.4,3.00000001]
[1756862528766,0.001,4302.4,4301.9,0.468]
[1756862528953,0.001,4302.4,4302.3,0.3107]
[1756862530068,0.001,4302.4,4302.3,0.7787]
[1756862530233,2.32528412,4302.4,4302.3,0.3107]
[1756862530747,2.32528412,4302.4,4302.0,0.584]
[1756862531149,2.32436004,4302.3,4302.0,0.584]
[1756862531445,2.32436004,4302.3,4302.0,0.116]
[1756862532176,2.32464335,4301.8,4301.4,1e-08]
[1756862532378,2.32464335,4301.8,4301.5,3.91]
[1756862532668,2.32477042,4301.5,4301.4,0.11600001]
[1756862532976,3.56670747,4301.5,4301.4,0.11600001]
[1756862533182,3.65957042,4301.5,4301.4,1e-08]
[1756862533686,0.116,4301.5,4301.4,0.31070001]
[1756862533973,0.116,4301.5,4301.4,0.77870001]
[1756862534673,2.44077042,4301.5,4301.4,0.77870001]
[1756862534871,2.44077042,4301.5,4301.4,0.31070001]
[1756862534872,0.116,4301.5,4301.4,0.31070001]
[1756862535582,2.44077042,4301.5,4301.4,0.31070001]
[1756862536087,2.44077042,4301.5,4301.4,1e-08]
[1756862536580,2.73337042,4301.5,4301.4,1e-08]
[1756862536872,3.19807042,4301.5,4301.4,1e-08]
[1756862537281,0.8733,4301.5,4301.4,1e-08]
[1756862537656,3.19807042,4301.5,4301.4,1e-08]
[1756862539461,0.8733,4301.5,4301.4,1e-08]
[1756862539891,3.19807042,4301.5,4301.4,1e-08]
[1756862540502,3.68270747,4301.5,4301.4,1e-08]
[1756862541397,3.66057042,4301.5,4301.4,1e-08]
[1756862543602,3.19907042,4301.5,4301.4,1e-08]
[1756862546720,3.66057042,4301.5,4301.4,1e-08]
[1756862549200,3.19907042,4301.5,4301.4,1e-08]
[1756862550799,0.8743,4301.5,4301.4,1e-08]
[1756862551121,0.117,4301.5,4301.4,1e-08]
[1756862551526,0.117,4301.5,4301.4,0.79690001]
[1756862551830,0.001,4301.5,4301.4,0.79690001]
[1756862555230,0.001,4301.5,4301.4,1e-08]
[1756862555438,0.001,4301.5,4301.4,0.30190001]
[1756862557394,0.001,4301.5,4301.4,0.79690001]
[1756862557733,0.001,4301.5,4301.4,1.53239404]
[1756862557951,0.001,4301.5,4301.4,1.73549404]
[1756862558251,0.001,4301.5,4301.4,5.81531851]
[1756862558407,0.001,4301.5,4301.4,5.93131851]
[1756862560247,0.001,4301.5,4301.4,5.81531851]
[1756862560477,0.001,4301.5,4301.4,8.81531851]
[1756862561700,0.001,4301.5,4301.4,2.55190001]
[1756862561849,3.59067042,4301.5,4301.4,0.11600001]
[1756862562165,3.59067042,4301.5,4301.4,1e-08]
[1756862562537,3.61380747,4301.5,4301.4,1e-08]
[1756862564461,3.72980747,4301.5,4301.4,1e-08]
[1756862566568,7.63880747,4301.5,4301.4,1e-08]
[1756862566869,7.61567042,4301.5,4301.4,1e-08]
[1756862567444,10.61567042,4301.5,4301.4,1e-08]
[1756862572936,9.66107042,4301.5,4301.4,1e-08]
[1756862573226,10.12977042,4301.5,4301.4,1e-08]
[1756862573564,10.61567042,4301.5,4301.4,1e-08]
[1756862574696,10.12977042,4301.5,4301.4,1e-08]
[1756862577789,10.61567042,4301.5,4301.4,1e-08]
[1756862578575,10.12977042,4301.5,4301.4,1e-08]
[1756862580471,0.117,4301.5,4301.4,0.75740001]
[1756862580671,0.001,4301.5,4301.4,1.64301646]
[1756862580906,2.32577042,4301.5,4301.4,0.75740001]
[1756862581074,0.001,4301.5,4301.4,0.75740001]
[1756862581608,2.32577042,4301.5,4301.4,0.75740001]
[1756862582105,0.001,4301.5,4301.4,0.75740001]
[1756862583974,0.001,4301.5,4301.4,1e-08]
[1756862584318,0.001,4301.5,4301.4,0.28550001]
[1756862584486,0.001,4301.5,4301.4,0.75740001]
[1756862584883,0.001,4301.5,4301.4,0.28550001]
[1756862585128,0.001,4301.5,4301.4,1e-08]
[1756862586607,2.32577042,4301.5,4301.4,1e-08]
[1756862587403,0.001,4301.5,4301.4,1e-08]
[1756862587910,0.001,4301.5,4301.4,0.75740001]
[1756862589216,2.32577042,4301.5,4301.4,1e-08]
[1756862589907,2.63167042,4301.5,4301.4,1e-08]
[1756862590217,3.10037042,4301.5,4301.4,1e-08]
[1756862590986,0.7756,4301.5,4301.4,1e-08]
[1756862591199,0.001,4301.5,4301.4,1e-08]
[1756862591397,0.001,4301.5,4301.4,0.28550001]
[1756862592078,0.001,4301.5,4301.4,0.75740001]
[1756862594317,2.32577042,4301.5,4301.4,1e-08]
[1756862594819,0.001,4301.5,4301.4,1e-08]
[1756862596818,0.001,4301.5,4301.4,0.75740001]
[1756862598928,0.001,4301.5,4301.4,0.28550001]
[1756862599428,0.001,4301.5,4301.4,0.75740001]
[1756862601015,0.001,4301.5,4301.4,3.6311343]
[1756862601213,0.001,4301.5,4301.4,3.60788606]
[1756862601527,0.001,4301.5,4301.4,1.19596159]
[1756862601732,0.001,4301.5,4301.4,0.87340001]
[1756862602032,0.001,4301.5,4301.4,0.40150001]
[1756862602333,7.47687042,4301.5,4301.4,1e-08]
[1756862602495,7.79101848,4301.5,4301.4,1e-08]
[1756862602699,7.47687042,4301.5,4301.4,1e-08]
[1756862608633,10.47687042,4301.5,4301.4,1e-08]
[1756862610675,11.58301848,4301.5,4301.4,1e-08]
[1756862611247,11.58301848,4301.5,4300.9,0.004]
[1756862611248,2.32504068,4301.0,4300.9,0.004]
[1756862611479,17.74994222,4301.0,4300.9,0.004]
[1756862611661,19.07650517,4301.0,4300.9,0.004]
[1756862611862,19.16972342,4301.0,4300.9,0.004]
[1756862612162,19.16972342,4301.0,4299.8,0.02]
[1756862612163,2.32525694,4300.6,4299.8,0.02]
[1756862612464,16.22715848,4300.6,4299.8,0.02]
[1756862612669,16.20402143,4300.6,4299.8,0.02]
[1756862612963,18.1369056,4300.6,4299.8,0.02]
[1756862613367,9.34825694,4300.6,4299.8,0.02]
[1756862613542,10.11115694,4300.6,4299.9,0.4629]
[1756862614677,10.58195694,4300.6,4299.8,0.02]
[1756862614904,5.44125694,4300.6,4300.2,0.4629]
[1756862615194,5.44125694,4300.6,4299.8,0.02]
[1756862615195,4.024,4300.6,4300.5,0.7634]
[1756862615476,6.87331898,4300.6,4300.5,0.004]
[1756862615629,10.58295694,4300.6,4300.5,0.004]
[1756862619836,16.64672143,4300.6,4300.5,0.004]
[1756862624172,10.11215694,4300.6,4300.5,0.004]
[1756862624945,10.58295694,4300.6,4300.5,0.004]
[1756862625356,10.11215694,4300.6,4300.5,0.004]
[1756862628393,10.58295694,4300.6,4300.5,0.004]
[1756862630663,2.32552731,4300.1,4300.0,0.004]
[1756862630876,9.37166436,4300.1,4300.0,0.004]
[1756862631048,10.58222731,4300.1,4300.0,0.004]
[1756862631244,3.11763547,4299.9,4299.6,0.004]
[1756862631502,13.52833718,4299.7,4299.6,0.004]
[1756862631651,13.82923718,4299.7,4299.6,0.004]
[1756862631850,14.76203718,4299.7,4299.6,0.004]
[1756862632178,14.87803718,4299.7,4299.6,0.004]
[1756862632911,0.792,4299.5,4298.8,0.02]
[1756862633070,8.20259353,4298.9,4298.8,0.02]
[1756862633391,17.85266999,4298.9,4298.8,1e-08]
[1756862633562,6.43237863,4298.8,4298.7,1e-08]
[1756862633951,7.66607863,4298.8,4298.7,1e-08]
[1756862634149,7.66607863,4298.8,4297.8,0.02]
[1756862634150,2.326476,4298.4,4297.8,0.02]
[1756862634353,1.95314806,4298.3,4297.8,0.02]
[1756862634565,3.0,4298.1,4297.8,0.02]
[1756862634858,6.11871769,4297.9,4297.8,0.02]
[1756862635281,6.41961769,4297.9,4297.8,0.02]
[1756862635484,10.34761769,4297.9,4297.8,0.02]
[1756862635795,3.928,4297.9,4297.8,0.7794]
[1756862636257,6.25471769,4297.9,4297.8,0.7794]
[1756862636796,3.928,4297.9,4297.8,0.7794]
[1756862637202,1.639,4298.3,4297.8,0.7794]
[1756862637404,1.639,4298.3,4297.9,0.666]
[1756862637700,3.928,4298.2,4298.0,0.666]
[1756862637999,3.95113705,4298.2,4298.1,0.2965]
[1756862638199,7.2289,4298.2,4297.8,0.02]
[1756862638362,5.78860943,4298.1,4297.8,0.02]
[1756862638555,5.32671769,4297.9,4297.8,0.02]
[1756862639299,5.62761769,4297.9,4297.8,0.02]
[1756862639464,6.12601769,4297.9,4297.8,0.02]
[1756862639669,5.32671769,4297.9,4297.8,0.02]
[1756862639976,5.64121769,4297.9,4297.8,0.02]
[1756862640176,5.32671769,4297.9,4297.8,0.3308]
[1756862640486,9.26771769,4297.9,4297.8,0.3308]
[1756862640789,5.32671769,4297.9,4297.8,0.02]
[1756862640962,3.941,4297.9,4297.8,0.8059]
[1756862641163,1.639,4298.3,4297.8,0.8059]
[1756862641164,3.942,4298.0,4297.8,1.013]
[1756862641362,2.32656077,4298.2,4297.9,0.4751]
[1756862641576,3.943,4298.1,4297.9,0.4751]
[1756862641781,3.943,4298.1,4298.0,0.4751]
[1756862641999,6.26960943,4298.1,4297.8,0.024]
[1756862642156,3.943,4298.1,4297.8,0.4991]
[1756862642361,3.943,4298.1,4298.0,0.3108]
[1756862642581,6.26960943,4298.1,4297.8,0.024]
[1756862643056,3.943,4298.1,4297.8,0.024]
[1756862643262,2.32671769,4297.9,4297.8,0.4991]
[1756862643484,2.32671769,4297.9,4297.8,0.024]
[1756862643485,3.942,4297.9,4297.8,0.024]
[1756862643673,3.942,4297.9,4297.8,0.3348]
[1756862644197,3.943,4297.9,4297.8,0.8099]
[1756862644374,4.059,4297.9,4297.8,0.8099]
[1756862644963,0.116,4297.9,4297.8,0.8099]
[1756862645168,4.058,4297.9,4297.8,0.8099]
[1756862645496,4.4171,4298.8,4297.8,1.013]
[1756862645671,4.4171,4298.8,4297.9,0.116]
[1756862645672,0.116,4298.5,4297.9,0.116]
[1756862645873,0.116,4298.5,4298.0,0.75286201]
[1756862646077,3.96613705,4298.4,4297.8,0.024]
[1756862646894,2.3265074,4298.3,4297.8,0.024]
[1756862647199,3.944,4298.2,4297.8,0.024]
[1756862647400,3.944,4298.2,4297.9,0.4751]
[1756862647580,3.944,4298.2,4298.1,0.3108]
[1756862647894,6.2705036,4298.3,4298.1,0.3108]
[1756862648103,6.2705036,4298.3,4298.1,0.7859]
[1756862648299,0.116,4298.5,4298.2,0.4751]
[1756862648486,3.942,4298.4,4298.2,0.6782]
[1756862648804,3.942,4298.4,4298.3,0.7859]
[1756862648997,2.44241395,4298.5,4298.3,0.7859]
[1756862649300,2.3265208,4298.3,4297.8,0.4991]
[1756862649682,2.3265208,4298.3,4297.9,0.4751]
[1756862650495,2.32671769,4297.9,4297.8,0.024]
[1756862650700,0.116,4298.0,4297.8,0.024]
[1756862650870,3.953,4297.9,4297.8,0.3348]
[1756862651297,6.27971769,4297.9,4297.8,0.3348]
[1756862651599,3.952,4297.9,4297.8,0.3348]
[1756862651976,0.116,4298.0,4297.8,0.8099]
[1756862652182,3.952,4298.1,4297.9,0.4751]
[1756862652499,6.27861142,4298.1,4297.8,0.024]
[1756862652668,0.116,4297.9,4297.8,0.024]
[1756862652870,2.44271769,4297.9,4297.8,0.024]
[1756862653072,2.75721769,4297.9,4297.8,0.024]
[1756862653467,0.8967,4297.9,4297.8,0.024]
[1756862653671,0.4305,4297.9,4297.8,0.024]
[1756862653891,0.116,4297.9,4297.8,0.024]
[1756862654620,2.75721769,4297.9,4297.8,0.024]
[1756862654920,0.116,4297.9,4297.8,0.024]
[1756862655106,2.44271769,4297.9,4297.8,0.024]
[1756862655641,2.75721769,4297.9,4297.8,0.024]
[1756862655977,3.22341769,4297.9,4297.8,0.024]
[1756862656387,2.75721769,4297.9,4297.8,0.024]
[1756862656588,3.22341769,4297.9,4297.8,0.024]
[1756862656991,7.17241769,4297.9,4297.8,0.024]
[1756862657777,7.65721769,4297.9,4297.8,0.024]
[1756862658081,10.65721769,4297.9,4297.8,0.024]
[1756862658886,10.65721769,4297.9,4297.8,1e-08]
[1756862658887,12.97321769,4297.9,4297.8,1e-08]
[1756862659271,12.98421769,4297.9,4297.8,1e-08]
[1756862660486,20.39481122,4297.9,4297.8,1e-08]
[1756862661120,20.70895928,4297.9,4297.8,1e-08]
[1756862661318,20.70895928,4297.9,4297.3,1e-08]
[1756862661319,5.32690519,4297.6,4297.3,1e-08]
[1756862661486,6.11898841,4297.4,4297.3,1e-08]
[1756862661691,6.43348841,4297.4,4297.3,1e-08]
[1756862662126,7.38448841,4297.4,4297.3,1e-08]
[1756862664525,6.59248841,4297.4,4297.3,1e-08]
[1756862664732,10.06868841,4297.4,4297.3,1e-08]
[1756862664924,10.55348841,4297.4,4297.3,1e-08]
[1756862666746,10.06868841,4297.4,4297.3,1e-08]
[1756862667045,10.55348841,4297.4,4297.3,1e-08]
[1756862668906,5.44298841,4297.4,4297.3,1e-08]
[1756862669112,6.40098841,4297.4,4297.3,0.78590001]
[1756862669429,18.39893,4297.4,4297.3,1e-08]
[1756862669623,18.08478194,4297.4,4297.3,1e-08]
[1756862670335,18.87678194,4297.4,4297.3,1e-08]
[1756862672012,19.19093,4297.4,4297.3,1e-08]
[1756862672304,19.47627846,4297.4,4297.3,1e-08]
[1756862673618,19.47527846,4297.4,4297.3,1e-08]
[1756862675050,26.63527846,4297.4,4297.3,1e-08]
[1756862676451,26.63427846,4297.4,4297.3,1e-08]
[1756862679726,2.32747585,4296.5,4296.4,0.004]
[1756862680046,2.32747585,4296.5,4296.2,0.0073]
[1756862680047,2.3275842,4296.3,4296.2,0.0073]
[1756862680253,9.30272125,4296.3,4296.2,0.0073]
[1756862680419,9.2795842,4296.3,4296.2,0.303]
[1756862680619,11.16473226,4296.3,4296.2,0.0073]
[1756862681220,11.16473226,4296.3,4295.8,1e-08]
[1756862681221,3.792,4296.0,4295.8,1e-08]
[1756862681452,6.42693797,4295.9,4295.8,1e-08]
[1756862681650,6.40380092,4295.9,4295.8,1e-08]
[1756862681851,7.50620092,4295.9,4295.8,1e-08]
[1756862682037,3.23580092,4295.9,4295.8,1e-08]
[1756862682244,9.41680092,4295.9,4295.8,0.77850001]
[1756862683369,5.44380092,4295.9,4295.8,0.77850001]
[1756862683524,9.41680092,4295.9,4295.8,0.77850001]
[1756862684157,5.44380092,4295.9,4295.8,0.77850001]
[1756862684484,5.44380092,4295.9,4295.8,0.98160001]
[1756862684764,9.41480092,4295.9,4295.8,0.98160001]
[1756862684961,9.41480092,4295.9,4295.8,0.77850001]
[1756862685170,9.41580092,4295.9,4295.8,0.77850001]
[1756862686569,9.41580092,4295.9,4295.8,0.29570001]
[1756862686770,9.72620092,4295.9,4295.8,1e-08]
[1756862686935,10.19480092,4295.9,4295.8,1e-08]
[1756862687140,9.41280092,4295.9,4295.8,1e-08]
[1756862687337,10.50594898,4295.9,4295.8,1e-08]
[1756862687561,16.58618604,4295.9,4295.8,1e-08]
[1756862688445,16.27203798,4295.9,4295.8,1e-08]
[1756862689941,15.49303798,4295.9,4295.8,1e-08]
[1756862690373,15.80343798,4295.9,4295.8,1e-08]
[1756862690575,16.27203798,4295.9,4295.8,1e-08]
[1756862690753,9.41280092,4295.9,4295.8,1e-08]
[1756862690961,15.49303798,4295.9,4295.8,1e-08]
[1756862691278,16.58618604,4295.9,4295.8,1e-08]
[1756862692183,17.08038604,4295.9,4295.8,1e-08]
[1756862693660,17.87238604,4295.9,4295.8,1e-08]
[1756862693857,17.55823798,4295.9,4295.8,1e-08]
[1756862694689,17.06403798,4295.9,4295.8,1e-08]
[1756862695397,17.55823798,4295.9,4295.8,1e-08]
[1756862696273,17.87238604,4295.9,4295.8,1e-08]
[1756862696681,18.1577345,4295.9,4295.8,1e-08]
[1756862697089,12.07749744,4295.9,4295.8,1e-08]
[1756862697269,12.07849744,4295.9,4295.8,1e-08]
[1756862697476,2.32807189,4295.4,4295.3,1e-08]
[1756862697677,0.9088,4294.9,4294.8,1e-08]
[1756862697911,7.53367996,4294.9,4294.8,1e-08]
[1756862698208,14.05937997,4294.9,4294.8,1e-08]
[1756862698993,13.59077997,4294.9,4294.8,1e-08]
[1756862699575,13.28037997,4294.9,4294.8,1e-08]
[1756862700305,2.44514291,4294.9,4294.8,0.77440001]
[1756862700598,6.40714291,4294.9,4294.8,0.77440001]
[1756862700914,6.40714291,4294.9,4294.8,0.30040001]
[1756862701065,6.40714291,4294.9,4294.8,1e-08]
[1756862701066,6.70794291,4294.9,4294.8,1e-08]
[1756862701267,10.16064291,4294.9,4294.8,1e-08]
[1756862701494,9.40714291,4294.9,4294.8,1e-08]
[1756862701872,9.70794291,4294.9,4294.8,1e-08]
[1756862702062,9.40714291,4294.9,4294.8,1e-08]
[1756862702259,5.44514291,4294.9,4294.8,1e-08]
[1756862702476,9.41114291,4294.9,4294.8,0.30040001]
[1756862703321,9.59033115,4294.9,4294.8,1e-08]
[1756862705207,5.44514291,4294.9,4294.8,0.77440001]
[1756862705411,0.1168,4294.9,4294.8,0.97750001]
[1756862705612,2.32834291,4294.9,4294.8,0.97750001]
[1756862705911,2.44514291,4294.9,4294.8,0.97750001]
[1756862706825,0.1168,4294.9,4294.8,0.97750001]
[1756862707115,2.44514291,4294.9,4294.8,0.97750001]
[1756862708108,6.40714291,4294.9,4294.8,0.77440001]
[1756862708720,6.40714291,4294.9,4294.8,0.97750001]
[1756862708919,4.0788,4294.9,4294.8,0.97750001]
[1756862709091,0.1168,4294.9,4294.8,0.97750001]
[1756862709296,2.44514291,4294.9,4294.8,0.97750001]
[1756862709612,6.40614291,4294.9,4294.8,0.97750001]
[1756862709783,6.40614291,4294.9,4294.8,0.77440001]
[1756862711081,2.44514291,4294.9,4294.8,0.97750001]
[1756862711318,0.1168,4294.9,4294.8,0.97750001]
[1756862711508,2.44514291,4294.9,4294.8,1e-08]
[1756862711785,2.44514291,4294.9,4294.8,0.77440001]
[1756862712215,0.1168,4294.9,4294.8,0.77440001]
[1756862712426,2.44514291,4294.9,4294.8,0.77440001]
[1756862713209,0.1168,4294.9,4294.8,0.97750001]
[1756862713410,0.1168,4294.9,4294.8,0.77440001]
[1756862713828,2.44514291,4294.9,4294.8,0.77440001]
[1756862714026,0.1168,4294.9,4294.8,0.97750001]
[1756862714508,3.956,4295.1,4294.8,0.97750001]
[1756862714702,2.44505536,4295.1,4294.9,0.474]
[1756862714911,2.44505536,4295.1,4295.0,0.7744]
[1756862715908,7.15455536,4295.1,4294.8,0.00400001]
[1756862716128,6.55607411,4295.0,4294.8,0.00400001]
[1756862716308,6.28334291,4294.9,4294.8,0.00400001]
[1756862716834,6.28334291,4294.9,4294.8,0.30440001]
[1756862717331,6.28334291,4294.9,4294.8,0.00400001]
[1756862717701,10.53194291,4294.9,4294.8,0.00400001]
[1756862721743,16.61217997,4294.9,4294.8,0.00400001]
[1756862722431,17.40417997,4294.9,4294.8,0.00400001]
[1756862727121,17.40417997,4294.9,4294.8,1e-08]
[1756862727318,18.00367649,4294.9,4294.8,1e-08]
[1756862728549,6.42114291,4294.9,4294.8,1e-08]
[1756862728727,9.39314291,4294.9,4294.8,1e-08]
[1756862728928,10.14664291,4294.9,4294.8,1e-08]
[1756862729368,11.43374291,4294.9,4294.8,1e-08]
[1756862729590,10.93864291,4294.9,4294.8,1e-08]
[1756862730075,6.19864291,4294.9,4294.8,1e-08]
[1756862730230,5.44514291,4294.9,4294.8,1e-08]
[1756862730431,9.39414291,4294.9,4294.8,1e-08]
[1756862731028,5.44514291,4294.9,4294.8,1e-08]
[1756862731265,9.39314291,4294.9,4294.8,0.77500001]
[1756862731769,9.39314291,4294.9,4294.8,0.29540001]
[1756862732133,9.39414291,4294.9,4294.8,0.29540001]
[1756862732527,5.44514291,4294.9,4294.8,0.29540001]
[1756862732727,9.39314291,4294.9,4294.8,0.29540001]
[1756862733154,5.44514291,4294.9,4294.8,1e-08]
[1756862733373,10.66144291,4294.9,4294.8,1e-08]
[1756862733543,11.27677277,4294.9,4294.8,1e-08]
[1756862734055,10.66144291,4294.9,4294.8,1e-08]
[1756862735960,16.25617997,4294.9,4294.8,1e-08]
[1756862736836,17.53367997,4294.9,4294.8,1e-08]
[1756862737436,11.45344291,4294.9,4294.8,1e-08]
[1756862737631,17.53167997,4294.9,4294.8,1e-08]
[1756862738459,25.19020983,4294.9,4294.8,1e-08]
[1756862738671,2.32931914,4293.1,4293.0,0.4796]
[1756862738869,3.838,4293.1,4293.0,0.4796]
[1756862739045,3.838,4293.1,4293.0,0.9781]
[1756862739989,1.641,4293.7,4293.0,0.9781]
[1756862740272,3.961,4293.7,4293.1,0.6827]
[1756862740440,3.961,4293.7,4293.6,0.2954]
[1756862740781,1.642,4294.4,4293.6,0.775]
[1756862740939,2.3287871,4294.1,4293.7,0.4796]
[1756862741277,6.28983328,4294.0,4293.8,0.4796]
[1756862741569,5.32872152,4294.3,4293.9,0.4796]
[1756862741873,2.32883092,4294.0,4293.9,0.4796]
[1756862742043,10.37837411,4294.0,4293.3,0.4796]
[1756862742245,2.32904587,4293.7,4293.3,0.4796]
[1756862742540,3.962,4293.7,4293.3,0.4796]
[1756862742747,3.962,4294.2,4293.9,0.2954]
[1756862742964,2.32928626,4295.1,4294.0,0.6827]
[1756862743275,2.32928626,4295.1,4294.1,0.6827]
[1756862743276,3.962,4295.0,4294.1,0.6827]
[1756862743479,6.2902887,4295.0,4294.9,0.2954]
[1756862743843,9.2902887,4295.0,4294.9,0.2954]
[1756862744174,6.963,4295.0,4294.9,0.775]
[1756862744474,3.963,4295.0,4294.9,0.775]
[1756862744846,0.9543,4295.7,4294.9,0.775]
[1756862744847,0.71995415,4295.8,4295.7,2.3279093]
[1756862745047,0.001,4295.9,4295.7,7.95502799]
[1756862745241,0.001,4295.9,4295.8,0.433]
[1756862745487,0.001,4295.9,4295.8,0.2954]
[1756862746378,0.001,4295.9,4295.1,0.2031]
[1756862746778,0.001,4295.9,4295.1,2.53132872]
[1756862747098,0.001,4295.9,4295.1,0.2031]
[1756862747304,0.001,4295.9,4295.2,0.25446877]
[1756862747946,0.001,4295.9,4295.8,0.2954]
[1756862749077,0.117,4295.9,4295.8,0.2954]
[1756862750078,0.001,4295.9,4295.8,0.6361]
[1756862750649,0.001,4295.9,4295.8,0.4985]
[1756862750946,0.001,4295.9,4295.8,0.86272337]
[1756862751172,0.001,4295.9,4295.8,3.32817848]
[1756862752283,0.001,4295.9,4295.8,1.00032337]
[1756862752505,0.001,4295.9,4295.8,3.32817848]
[1756862752684,0.001,4295.9,4295.8,2.98747848]
[1756862757084,0.001,4295.9,4295.8,3.00747848]
[1756862757783,0.001,4295.9,4295.8,3.34817848]
[1756862759384,0.001,4295.9,4295.8,6.37145703]
[1756862759690,0.001,4295.9,4295.8,6.34817848]
[1756862759891,0.001,4295.9,4295.8,6.32817848]
[1756862761199,0.001,4295.9,4295.8,7.12017848]
[1756862761496,0.001,4295.9,4295.8,7.23617848]
[1756862762181,0.001,4295.9,4295.8,18.33617848]
[1756862763503,1e-08,4295.9,4295.8,18.33617848]
[1756862763672,1e-08,4296.4,4296.2,0.792]
[1756862763986,1e-08,4296.4,4296.3,7.41155089]
[1756862764191,1e-08,4296.4,4296.3,7.83855089]
[1756862764386,1e-08,4296.4,4296.3,18.93855089]
[1756862764777,1e-08,4296.4,4296.3,18.14655089]
[1756862765677,1e-08,4296.4,4296.3,7.04655089]
[1756862767983,1e-08,4296.4,4296.3,8.17955089]
[1756862768175,1e-08,4296.4,4296.3,11.17955089]
[1756862768373,1e-08,4296.4,4296.3,6.85755089]